Workbook

Sheet бюдж.смета (расходы)
H1: Приложение №1
H2: К Порядку составления, утверждения и ведения бюджетных смет,
H3: смет доходов и расходов по приносящей доход деятельности
H4: в Федеральной службе по надзору в сфере связи, информационных
H5: технологий и массовых коммуникаций, утвержденному приказом
H6: Роскомнадзора от 24 декабря 2009 г. № 707
E8: УТВЕРЖДАЮ: Бюджетную смету в сумме:
E10: Руководитель | H10: ______________________________ | K10: _____________
I11: (подпись) | K11: (расшифровка подписи)
B13: № ________ от _______________ | I13: "____" ________________________ 20 г.
B14: (номер и дата расходного расписания)
B15: БЮДЖЕТНАЯ СМЕТА
F16: НА 20_______ ГОД | K16: коды
J17: по ОКПО
B18: Получатель бюджетных средств | E18: _________________________________________________ | J18: по СРРПБС
B19: Адрес | E19: _________________________________________________
B20: Главный распорядитель бюджетных средств | E20: Федеральная служба по надзору в сфере связи, информационных технологий и массовых коммуникаций | J20: по ППП | K20: 096
B21: Единица измерения: | E21: тыс. рублей | J21: по ОКЕИ | K21: 384
P22: по КВР
P23: по ОКЕИ | Q23: 384
B26: Наименование расхода | F26: Раздел | G26: Подраздел | H26: Целевая статья расхода | I26: Вид расхода | J26: КОСГУ | K26: Сумма на год
B27: 1 | F27: 2 | G27: 3 | H27: 4 | I27: 5 | J27: 6 | K27: 7
B28: Расходы | F28: 04 | G28: 01 | H28: 0011500 | I28: 012 | J28: 200 | K28: =K29+K33+K40+K44 -> 0
B29: Оплата труда и начисления на выплаты по оплате труда | F29: 04 | G29: 01 | H29: 0011500 | I29: 012 | J29: 210 | K29: =SUM(K30:K32) -> 0
B30: Заработная плата | F30: 04 | G30: 01 | H30: 0011500 | I30: 012 | J30: 211
B31: Прочие выплаты | F31: 04 | G31: 01 | H31: 0011500 | I31: 012 | J31: 212
B32: Начисления на выплаты по оплате труда | F32: 04 | G32: 01 | H32: 0011500 | I32: 012 | J32: 213
B33: Оплата работ, услуг | F33: 04 | G33: 01 | H33: 0011500 | I33: 012 | J33: 220 | K33: =SUM(K34:K39) -> 0
B34: Услуги связи | F34: 04 | G34: 01 | H34: 0011500 | I34: 012 | J34: 221
B35: Транспортные услуги | F35: 04 | G35: 01 | H35: 0011500 | I35: 012 | J35: 222
B36: Коммунальные услуги | F36: 04 | G36: 01 | H36: 0011500 | I36: 012 | J36: 223
B37: Арендная плата за пользование имуществом | F37: 04 | G37: 01 | H37: 0011500 | I37: 012 | J37: 224
B38: Работы, услуги по содержанию имущества | F38: 04 | G38: 01 | H38: 0011500 | I38: 012 | J38: 225
B39: Прочие работы, услуги | F39: 04 | G39: 01 | H39: 0011500 | I39: 012 | J39: 226
B40: Социальное обеспечение | F40: 04 | G40: 01 | H40: 0011500 | I40: 012 | J40: 260 | K40: =SUM(K41:K43) -> 0
B41: Пенсии, пособия и выплаты по пенсионному, социальному и медицинскому страхованию населения | F41: 04 | G41: 01 | H41: 0011500 | I41: 012 | J41: 261
B42: Пособия по социальной помощи населению | F42: 04 | G42: 01 | H42: 0011500 | I42: 012 | J42: 262
B43: Пенсии, пособия, выплачиваемые организациями сектора государственного управления | F43: 04 | G43: 01 | H43: 0011500 | I43: 012 | J43: 263
B44: Прочие расходы | F44: 04 | G44: 01 | H44: 0011500 | I44: 012 | J44: 290
B45: Поступления нефинансовых активов | F45: 04 | G45: 01 | H45: 0011500 | I45: 012 | J45: 300 | K45: =SUM(K46:K48) -> 0
B46: Увеличение стоимости основных средств | F46: 04 | G46: 01 | H46: 0011500 | I46: 012 | J46: 310
B47: Увеличение стоимости нематериальных активов | F47: 04 | G47: 01 | H47: 0011500 | I47: 012 | J47: 320
B48: Увеличение стоимости материальных запасов | F48: 04 | G48: 01 | H48: 0011500 | I48: 012 | J48: 340
B49: ИТОГО РАСХОДОВ ПО ЦСР | F49: 04 | G49: 01 | H49: 0011500 | I49: 012 | J49: 900 | K49: =K28+K45 -> 0
B50: Расходы | F50: 04 | G50: 01 | H50: 0010800 | I50: 012 | J50: 200 | K50: =K51 -> 0
B51: Приобретение работ, услуг | F51: 04 | G51: 01 | H51: 0010800 | I51: 012 | J51: 220 | K51: =K52 -> 0
B52: Прочие работы, услуги | F52: 04 | G52: 01 | H52: 0010800 | I52: 012 | J52: 226
B53: ИТОГО РАСХОДОВ ПО ЦСР | F53: 04 | G53: 01 | H53: 0010800 | I53: 012 | J53: 900 | K53: =K50 -> 0
B54: Расходы | F54: 04 | G54: 01 | H54: 0019500 | I54: 012 | J54: 200 | K54: =K55 -> 0
B55: Приобретение работ, услуг | F55: 04 | G55: 01 | H55: 0019500 | I55: 012 | J55: 220 | K55: =K56 -> 0
B56: Прочие расходы | F56: 04 | G56: 01 | H56: 0019500 | I56: 012 | J56: 290
B57: ИТОГО РАСХОДОВ ПО ЦСР | F57: 04 | G57: 01 | H57: 0019500 | I57: 012 | J57: 900 | K57: =K54 -> 0
B58: ИТОГО РАСХОДОВ | F58: 04 | G58: 00 | H58: 0000000 | I58: 012 | J58: 900 | K58: =K49+K53+K57 -> 0
B67: Главный бухгалтер ___________________________
E68: (подпись) | I68: (расшифровка подписи)
B70: " " | E70: 20____ г.

Sheet На сайт
A3: Отчет об исполнении федерального бюджета за 6 месяцев 2021 г.
A5: Управление Роскомнадзора по Костромской области
H7: (тыс.руб.)
A9: Наименование показателя | E9: Раздел | F9: Утвержденные расходы, равные лимитам бюджетных обязательств | G9: Исполнено (Кассовые расходы) | H9: Неисполненные назначения
A11: Расходы бюджета - всего | E11: х | F11: =F13 -> 12808.11 | G11: =G13 -> 2644 | H11: =H13 -> 10164.11
A12: в том числе:
A13: Национальная экономика | E13: 096 0400 | F13: =F14 -> 12808.11 | G13: =G14 -> 2644 | H13: =H14 -> 10164.11
A14: ТЕРРИТОРИАЛЬНЫЕ ОРГАНЫ | E14: 096 0401 2330019 | F14: =SUM(F15:F24) -> 12808.11 | G14: =SUM(G15:G24) -> 2644 | H14: =SUM(H15:H24) -> 10164.11
A15: Фонд оплаты труда государственных (муниципальных) органов | E15: 096 0401 2330190012 121 | F15: 7010.9 | G15: 1614.29 | H15: =F15-G15 -> 5396.61
A16: Взносы по обязательному социальному страхованию на выплаты денежного содержания и иные выплаты работникам государственных (муниципальных) органов | E16: 096 0401 2330190012 129 | F16: 2117.31 | G16: 465.39 | H16: =F16-G16 -> 1651.92
A17: Иные выплаты персоналу, за исключением фонда оплаты труда | E17: 096 0401 2330190019 122 | F17: 333.3 | G17: 62.96 | H17: =F17-G17 -> 270.34
A18: Закупка товаров, работ, услуг в сфере информационно-коммуникационных технологий | E18: 096 0401 2330190019 242 | F18: 362.2 | G18: 2.3 | H18: 359.9
A19: Прочая закупка товаров, работ и услуг для обеспечения государственных нужд | E19: 096 0401 2330190019 244 | F19: 2744.1 | G19: 473.67 | H19: 2270.43
A20: Закупка энергетических ресурсов | E20: 096 0401 2330190019 247 | F20: 172.8 | G20: 19.32 | H20: 153.48
A21: Уплата налога на имущество организаций и земельного налога | E21: 096 0401 2330190019 851 | F21: 12.5 | G21: 3.11 | H21: =F21-G21 -> 9.39
A22: Уплата прочих налогов, сборов | E22: 096 0401 2330190019 852 | F22: 11.9 | G22: 2.96 | H22: =F22-G22 -> 8.94
A23: Уплата иных платежей. | E23: 096 0401 2330190019 853 | F23: 0.8 | G23: 0 | H23: =F23-G23 -> 0.8
A24: Расходы на обеспечение функций государственных органов, в том числе территориальных органов (Прочая закупка товаров, работ и услуг для обеспечения государственных (муниципальных) нужд) | E24: 096 0705 2330190019 244 | F24: 42.3 | G24: 0 | H24: =F24-G24 -> 42.3
